Cogmind - Beta 12 *** ADVENTURER MODE // 2024.01.05 @ 01:05:48 Player: martinuzz Result: Destroyed by as-87069 with Assembled Blade Performance ------------- Evolutions (0) 0 Regions Visited (2) 400 Robots Destroyed (23) 115 Value Destroyed (466) 466 Prototype IDs (5) 100 Alien Tech Used (0) 0 Bonus (0) 0 TOTAL SCORE: 1081 Bonus ------- None Cogmind --------- Core Integrity 0/250 Matter 249/300 Energy 32/100 System Corruption 4% Temperature Cool (89) Movement Core (350) Ox6 Location -10/Mines Parts ------- > --- POWER (1) -------- (None) > --- PROPULSION (2) --- (None) > --- UTILITY (2) ------ Large Storage Unit > --- WEAPON (2) ------- (None) > --- INVENTORY (15) --- Light Ion Engine Light Treads Improved Heat Sink High-capacity Storage Unit Machine Analyzer Sensor Array Signal Interpreter Improved Terrain Scanner Recalibrator Particle Gun Particle Cannon Assault Rifle Datajack Peak State ------------ > --- POWER ------------ Light Ion Engine > --- PROPULSION ------- Light Treads Light Treads > --- UTILITY ---------- Small Storage Unit Improved Terrain Scanner > --- WEAPON ----------- Particle Gun Particle Gun > --- INVENTORY -------- Light Ion Engine Light Ion Engine Assault Rifle [Rating: 11] Favorites ----------- Power Light Ion Engine Engine Light Ion Engine Propulsion Light Treads Treads Light Treads Utility Signal Interpreter Device Improved Terrain Scanner Storage Small Storage Unit Processor Signal Interpreter Weapon Particle Gun Energy Gun Particle Gun Ballistic Gun Assault Rifle Ballistic Cannon Light Cannon Launcher EMP Blaster Slashing Weapon Mining Claw Build | -11 -10 -10 ------- Run | Jun Mat Min Slots Evolved . | . . . Power . | . . . Propulsion . | . . . Utility . | . . . Weapon . | . . . Parts Attached 17 | 7 8 2 Power 1 | 1 . . Engine 1 | 1 . . Core . | . . . Reactor . | . . . Propulsion 3 | 2 1 . Treads 3 | 2 1 . Leg . | . . . Wheel . | . . . Hover . | . . . Flight . | . . . Utility 5 | 2 3 . Device 1 | 1 . . Storage 3 | 1 2 . Processor 1 | . 1 . Hackware . | . . . Protection . | . . . Artifact . | . . . Weapon 8 | 2 4 2 Energy Gun 3 | 1 2 . Energy Cannon . | . . . Ballistic Gun 1 | 1 . . Ballistic Cannon 2 | . 2 . Launcher 1 | . . 1 Special Weapon . | . . . Impact Weapon . | . . . Slashing Weapon 1 | . . 1 Piercing Weapon . | . . . Special Melee Weapon . | . . . Unidentified Prototypes . | . . . Parts Lost 5 | . . 5 Power 1 | . . 1 Propulsion . | . . . Utility 1 | . . 1 Weapon 3 | . . 3 Highest Loss Streak 5 | . . 5 To Critical Strikes . | . . . Average Slot Usage (%) 99 | . 99 96 Engine 13 | . 14 12 Treads 27 | . 28 26 Device 1 | . 1 . Storage 14 | . 14 14 Processor 12 | . 12 12 Energy Gun 15 | . 15 12 Ballistic Cannon 12 | . 11 14 Naked Turns . | . . . Heaviest Build 49 | 12 49 29 Greatest Support 40 | 40 40 40 Greatest Overweight (x) 2 | 2 1 . Average Overweight (x) . | . . . Largest Inventory Capacity 20 | 8 20 15 Average Capacity 13 | 7 13 15 Most Carried 14 | 5 14 14 Average Carried 8 | 2 8 13 Final Capacity 15 | 8 15 15 Final Carried 14 | 3 14 13 Class Distribution -------------------- 100% | Mutant Dominant Class ---------------- Mutant | -10/Materials Mutant | -10/Mines Resources | -11 -10 -10 ----------- Run | Jun Mat Min Matter Collected 488 | 303 172 13 Remotely . | . . . Salvage Created 947 | 146 658 143 Parts 50 | 9 41 . Haulers Intercepted 2 | . 2 . Recyclers Shooed 3 | 1 2 . Parts Field Recycled . | . . . Retrieved Matter . | . . . Parts Self-Destructed . | . . . Prevented . | . . . Kills | -11 -10 -10 ------- Run | Jun Mat Min Combat Hostiles Destroyed 14 | . 9 5 Guns 6 | . 6 . Cannons 4 | . 3 1 AOE 4 | . . 4 Classes Destroyed 8 | 2 5 1 Worker 1 | . 1 . Tunneler 3 | 3 . . Hauler 2 | . 2 . Recycler 4 | 1 2 1 Mechanic 1 | . 1 . Watcher 3 | . 3 . Grunt 9 | . 9 . Assembled 5 | . . 5 Best Kill Streak 7 | 3 7 6 Combat Bots Only 5 | . 3 5 Max Kills in Single Turn 5 | 1 1 5 Gunslinging . | . . . Exploded 3 | . . 3 Melee . | . . . Uniques/NPCs Destroyed . | . . . Combat | -11 -10 -10 -------- Run | Jun Mat Min Damage Taken 810 | . 181 629 Core 271 | . 47 224 Absorbed by Shields . | . . . Core Remaining (%) 100 | 100 . . Volleys Fired 41 | 11 28 2 Largest 2 | 2 2 2 Hottest 130 | 60 130 68 Shots Fired 82 | 22 56 4 Gun 55 | 22 33 . Cannon 25 | . 23 2 Launcher 2 | . . 2 Special . | . . . Kinetic 36 | 11 23 2 Thermal 44 | 11 33 . Explosive . | . . . Electromagnetic 2 | . . 2 Robot Hit Streak 15 | 9 15 3 Robot Miss Streak 2 | 1 2 1 Penetration Max . | . . . Secondary Targets . | . . . Shots Hit Robots 57 | 17 37 3 Core Hits 44 | 5 22 17 Critical Kills . | . . . Critical Parts Destroyed . | . . . Critical Strikes 1 | . 1 . Burn 1 | . 1 . Melee Attacks 1 | . . 1 Impact . | . . . Slashing 1 | . . 1 Piercing . | . . . Sneak Attacks . | . . . Combat Hostiles . | . . . Follow-up Attacks . | . . . Damage Inflicted 1246 | 209 631 406 Guns 663 | 209 454 . Cannons 208 | . 177 31 Explosions 374 | . . 374 Melee . | . . . Ramming 1 | . . 1 Kinetic 298 | 90 177 31 Thermal 737 | 119 454 164 Explosive . | . . . Electromagnetic 210 | . . 210 Impact . | . . . Slashing . | . . . Piercing . | . . . Highest Corruption 4 | . 1 4 Average Corruption 1 | . 1 1 Corruption Purged . | . . . Corruption Blocked . | . . . Effects 9 | . 7 2 Message Errors 2 | . 2 . Matter Fused 7 | . 5 2 Overload Shots . | . . . Overflow Damage . | . . . Projectiles . | . . . Explosions . | . . . Melee . | . . . Knockbacks 3 | . 2 1 Impact . | . . . Kinetic 3 | . 2 1 Secondary . | . . . Self-Inflicted Damage 41 | . . 41 Shots 3 | . . 3 Rammed 1 | . . 1 Targets Rammed 1 | . . 1 Kicked . | . . . Crushed . | . . . Highest Temperature 357 | . 357 109 Average Temperature 91 | . 93 69 Received Heat Transfer 392 | . 132 260 Siege Activations . | . . . Robots Corrupted . | . . . Combat Hostiles . | . . . Parts Fried . | . . . Impact Corruptions . | . . . Robots Melted . | . . . Combat Hostiles . | . . . Parts Melted 1 | . 1 . Heat Transferred 1772 | 275 1147 350 Parts Sabotaged . | . . . Parts Stolen . | . . . Parts Stripped . | . . . Power Chain Reactions 1 | . . 1 Missiles Intercepted . | . . . Alert | -11 -10 -10 ------- Run | Jun Mat Min Peak Influence 228 | 20 228 . Initial 11 | . 11 . Average 42 | 10 49 . Maximum Alert Level 1 | . 1 . Low Security (%) 98 | 100 98 100 Level 1 1 | . 1 . Level 2 . | . . . Level 3 . | . . . Level 4 . | . . . Level 5 . | . . . High Security . | . . . Max Security . | . . . Squads Dispatched . | . . . Investigation . | . . . Extermination . | . . . Reinforcement . | . . . Assault . | . . . Garrison . | . . . Intercept . | . . . Searches Triggered . | . . . Construction Impeded . | . . . Haulers Reinforced . | . . . Active Scanning Responses . | . . . Cargo Convoy Interrupts . | . . . Stealth | -11 -10 -10 --------- Run | Jun Mat Min Distress Signals 1 | . 1 . Communications Jammed . | . . . Distress Signals . | . . . Times Spotted 30 | . 13 17 Peak Tracking Total 17 | . 2 17 Tactical Retreats . | . . . Traps | -11 -10 -10 ------- Run | Jun Mat Min Traps Triggered 3 | . 3 . Indirectly . | . . . Trap Hack Attempts . | . . . Triggered . | . . . Disarmed . | . . . Reprogrammed . | . . . Reused . | . . . Traps Extracted . | . . . Installed . | . . . Triggered . | . . . Machines | -11 -10 -10 ---------- Run | Jun Mat Min Machines Disabled 1 | . 1 . Max in Single Turn 1 | . 1 . Machines Repaired . | . . . Machines Sabotaged . | . . . Overloaded Fab Kills . | . . . Hacking | -11 -10 -10 --------- Run | Jun Mat Min Machines Accessed 11 | . 11 . Terminals 8 | . 8 . Fabricators . | . . . Repair Stations 1 | . 1 . Recycling Units 2 | . 2 . Scanalyzers . | . . . Garrison Access . | . . . Total Hacks 38 | . 38 . Successful 25 | . 25 . Failed 13 | . 13 . Catastrophic . | . . . Database Lockouts . | . . . Manual . | . . . Terminals 30 | . 30 . Fabricators . | . . . Repair Stations 3 | . 3 . Recycling Units 5 | . 5 . Scanalyzers . | . . . Garrison Access . | . . . Terminal Hacks 22 | . 22 . Record 8 | . 8 . Robot Analysis 1 | . 1 . Prototype ID Bank 3 | . 3 . Emergency Access Points 1 | . 1 . Alert Level 1 | . 1 . Dispatch Records 4 | . 4 . Reinforcement Status 1 | . 1 . Hauler Manifests 2 | . 2 . Zone Layout 1 | . 1 . Fabricator Hacks . | . . . Repair Station Hacks 1 | . 1 . Scan Component 1 | . 1 . Recycling Unit Hacks 2 | . 2 . Retrieve Components 2 | . 2 . Scanalyzer . | . . . Garrison Access Hacks . | . . . Unauthorized Hacks . | . . . Terminals . | . . . Fabricators . | . . . Repair Stations . | . . . Recycling Units . | . . . Scanalyzers . | . . . Garrison Access . | . . . Data Cores Recovered . | . . . Used . | . . . Hacking Detections 10 | . 10 . Full Trace Events 2 | . 2 . Feedback Events . | . . . Feedback Blocked . | . . . Robot Schematics Acquired . | . . . Robots Built . | . . . Authchips . | . . . Time . | . . . Total Robot Build Rating . | . . . Part Schematics Acquired . | . . . Parts Built . | . . . Authchips . | . . . Time . | . . . Total Part Build Rating . | . . . Parts Repaired . | . . . Time . | . . . Parts Recycled . | . . . Recycled Matter . | . . . Retrieved Matter . | . . . Retrieved Components 15 | . 15 . Parts Scanalyzed . | . . . Part Schematics Acquired . | . . . Parts Damaged . | . . . Bothacking | -11 -10 -10 ------------ Run | Jun Mat Min Used RIF Installer . | . . . Robots Hacked . | . . . Non-combat . | . . . Combat . | . . . Robot Hacks Applied . | . . . Relay Couplers Released . | . . . Fabnet Peak Effective % . | . . . Robots Rewired . | . . . Allies Hacked . | . . . Hacks Repelled . | . . . Allies | -11 -10 -10 -------- Run | Jun Mat Min Total Allies . | . . . Largest Group . | . . . Highest-Rated Group . | . . . Highest-Rated Ally . | . . . Total Orders . | . . . Ally Attacks . | . . . Total Damage . | . . . Kills . | . . . Allies Corrupted . | . . . Allies Melted . | . . . Intel | -11 -10 -10 ------- Run | Jun Mat Min Robot Analysis Total 1 | . 1 . Derelict Logs Recovered . | . . . Drone Launches . | . . . Drone Recoveries . | . . . Exploration | -11 -10 -10 ------------- Run | Jun Mat Min Turns Passed 1708 | 163 1408 137 Spaces Moved 884 | 78 729 77 Core 13 | 13 . . Treads 871 | 65 729 77 Legs . | . . . Wheels . | . . . Hover . | . . . Flight . | . . . Fastest Speed 50 | 50 160 160 Average Speed 171 | 146 175 160 Slowest Speed 240 | 160 240 160 Overloaded Moves . | . . . Propulsion Burnouts . | . . . Robots Hopped . | . . . Cave-ins Triggered . | . . . Exploration Rate (%) 41 | 4 98 23 Regions Visited 2 Branch Regions 1 Pre-discovered Areas . | . . . Known Exits Taken 1 | . 1 . Unknown Exits Taken 1 | 1 . . Scrap Searched . | . . . Spaces Dug . | . . . Terrain Destroyed 2 | . . 2 Melee . | . . . Projectile . | . . . AOE 2 | . . 2 Terrain Rammed . | . . . Walls Destroyed . | . . . Machines Disabled . | . . . Actions | -11 -10 -10 --------- Run | Jun Mat Min Total 990 | 105 801 84 Wait 10 | . 9 1 Move 882 | 77 728 77 Hop . | . . . Pick Up 30 | 10 20 . Fast Attach . | . . . Attach 9 | 7 1 1 Detach . | . . . Swap 8 | . 7 1 Drop 8 | . 8 . Fire 41 | 11 28 2 Melee 1 | . . 1 Ram 1 | . . 1 Kick . | . . . Crush . | . . . Escape Stasis . | . . . Rewire . | . . . Trap . | . . . Miscellaneous . | . . . Route ------- -11/Junkyard -10/Materials (discovered 5 exits: *Mat x3 / *Min x2) -10/Mines History --------- Turn | Location | Event 13 | -11/Junkyard | Discovered new exit (range 16) 164 | -11/Junkyard | Entered Materials 261 | -10/Materials | Discovered new exit (range 16) 306 | -10/Materials | Build established: Mutant 342 | -10/Materials | Identified exit to Materials 418 | -10/Materials | Discovered new exit (range 8) 428 | -10/Materials | Identified exit to Mines 562 | -10/Materials | Discovered exit to Materials (range 13) 606 | -10/Materials | Discovered exit to Mines (range 6) 1044 | -10/Materials | Discovered exit to Materials (range 8) 1572 | -10/Materials | Entered Mines 1674 | -10/Mines | Assembled infested the area 1704 | -10/Mines | Core integrity fell below 50% 1707 | -10/Mines | Core integrity fell below 20% 1709 | -10/Mines | Destroyed by as-87069 with Assembled Blade Last Messages --------------- 01698_ as-17067 destroyed. 01698_ R-06 Scavenger destroyed. 01698_ as-27282 destroyed. 01698_ as-07102 destroyed. 01698_ Signal Interpreter destroyed. 01698_ System corrupted by crushing effect (+1). 01700_ as-96694 destroyed. 01701_ Lgt. Treads severed. 01701_ as-97628 destroyed. 01701_ as-73211 knocked back. 01702_ Lgt. Cannon destroyed. 01702_ System corrupted by crushing effect (+2). 01704_ Slammed into as-73211. 01705_ Acquired 4 matter. 01705_ as-98072 destroyed. 01705_ EMP Blaster destroyed. 01706_ R-06 Scavenger destroyed. 01708_ Knocked back. 01709_ Acquired 9 matter. 01709_ Mining Claw destroyed. Map ----- +----------------------------------------------------+ | ???????????????????????????????????????????? | | ???????????????????????????????????????????? | | ???????????????????????????????????????????? | | ???????????????????????????????????????????? | | ???????????????????????????????????????????? | | ??????????????????#????????????????????????? | | ???????????????### ????????????????????????? | | ??????????????? ????????????????????????? | | ??????????????? ?????????????????????????? | | ??????????????? ?????????????????????????? | | ???????????????# ?????????????????????????? | | ???????????????# #?????????????????????????? | | ???????????????# ##### #???????????????? | | ???????????????# #????????????????? | | ??????????????## ##### #?????????????????? | | ???????####??## #?????????????????????????? | | ??????## #### ##### ??????????? | | ???#### ## ??????????? | | ??## ### ??????????? | | ??# #??a### ??????????? | | ??# #### #?? #????? ???????????? | | ?## ##??## a###a#?????????????????????? | | ?# #????## a% a=%*#?????????????????????? | | ?# ##????## %a=!a##????????????????????? | | ?# ######## a #????????????????????? | | ?# #?## a@ #????????????????????? | | ?## #### #??## a%! #????????????????????? | | ??####??# #???### = #????????????????????? | | ????????# ####??### #????????????????????? | | ????????# ###### #????????????????????? | | ???????## ??????????????????? | | ??????## #########???????????????????? | | ??????# """ ##???????????????????????????? | | ??????# """ #????????????????????????????? | | ??????## """ ############?????????????????? | | ???????## #?????????????????? | | ????????## #?????????????????? | | ?????????## ########## #########?????????? | | ??????????####????????# #????????? | | ??????????????????????# ######## #????????? | | ??????????????????????# #?????????????????? | | ??????????????????????# #?????????????????? | | ??????????????????????# #?????????????????? | | ??????????????????????# #?????????????????? | | ???????????????#####??# #????????? ##????? | | ???????????????# #### #????? ?????? | | ???????????????# ## #????????? | | ???????????????### #?????????? | | ?????????????????## ###?????????? | | ??????????????????##############???????????? | +----------------------------------------------------+ Best States ------------- Heat Dissipation 25 Energy Generation 10 Energy Capacity 125 Matter Stores 300 Matter Capacity 300 Sight Range 16 Terrain Scan Range 16 Terrain Scan Density 10 Resistance: KI 20 Resistance: TH 20 Resistance: EX 20 Resistance: EM 20 Resistance: I 20 Resistance: S 20 Resistance: P 20 Evasion (%) 50 Recoil Reduction 2 Offensive Hacking 10 Item Schematics ----------------- None Robot Schematics ------------------ None Fabricated ------------ Nothing Alien Tech Used ----------------- None Achievements -------------- None Challenges ------------ None Game ------ Seed 22461016 Manual? 1 Play Time 00:20:20 Cumulative 29.6 hours Start 2024.01.05 @ 00:47:23 End 2024.01.05 @ 01:05:48 Sessions 1 Manual Loads 0 Difficulty Adventurer Special Mode None Game No. 16 Rogue 0 Adventurer 16 Explorer 0 Win Type - Total 0 Types 0/0/0/0/0/0/0/0/0 Lore% 23 Gallery% 25 Achievement% 24 Wizard Run 0 Options --------- ASCII 0 Keyboard 0 Movement Mouse Keybinds 0 Fullscreen 1 Font 18/TerminusBold Map View 76x50 Tactical HUD 1 Map Filters NONE Filters NONE Steam 1 RUN: 2717a0c5-c9b4-4b05-b9c4-33f01d401df0